bitfinex/quotes_SOLUSD_20250919
["timestamp","ask_amount","ask_price","bid_price","bid_amount"]
[1758254021426,95.023615,245.29,245.28,0.73]
[1758254021725,69.023615,245.29,245.28,0.73]
[1758254021923,102.123615,245.29,245.28,0.73]
[1758254025619,69.023615,245.29,245.28,0.73]
[1758254025904,69.023615,245.29,245.28,4.80697325]
[1758254026103,102.103615,245.29,245.28,4.80697325]
[1758254026304,69.023615,245.29,245.28,4.80697325]
[1758254027327,69.023615,245.29,245.28,0.73]
[1758254027921,69.023615,245.29,245.28,0.03]
[1758254028231,69.023615,245.29,245.28,0.73]
[1758254028626,69.023615,245.29,245.28,3.03893226]
[1758254030823,69.023615,245.29,245.28,7.11590551]
[1758254031012,0.06,245.32,245.31,26.0]
[1758254031211,0.06,245.32,245.31,30.61786452]
[1758254031829,0.06,245.32,245.31,34.69433918]
[1758254035937,0.06,245.34,245.32,0.28432314]
[1758254036233,0.68,245.33,245.32,2.30893226]
[1758254036451,0.06,245.34,245.32,2.30893226]
[1758254036616,0.06,245.32,245.29,14.26882465]
[1758254036939,0.06,245.32,245.31,2.30893226]
[1758254037833,0.06,245.32,245.31,6.38540692]
[1758254038617,0.06,245.32,245.31,4.07647466]
[1758254038813,0.06,245.32,245.31,6.38540692]
[1758254039422,0.06,245.32,245.31,20.26532407]
[1758254040021,0.06,245.32,245.31,22.57425633]
[1758254040319,0.06,245.34,245.32,0.28432314]
[1758254040535,0.06,245.34,245.33,30.61786452]
[1758254041452,0.06,245.34,245.33,34.69400685]
[1758254042239,0.06,245.34,245.33,30.07614233]
[1758254042647,1e-08,245.35,245.34,39.87991715]
[1758254044019,1e-08,245.35,245.34,43.95589334]
[1758254044235,6.82627148,245.46,245.34,43.95589334]
[1758254044236,0.68,245.45,245.38,0.28432314]
[1758254044434,0.74,245.44,245.38,26.0]
[1758254045638,0.74,245.44,245.38,30.07531176]
[1758254045958,0.06,245.44,245.38,30.07531176]
[1758254046165,0.68,245.41,245.38,30.07531176]
[1758254046450,0.68,245.41,245.38,4.07531176]
[1758254046822,2.3666156,245.44,245.38,4.07531176]
[1758254047045,0.84,245.39,245.38,4.07531176]
[1758254047542,0.16,245.39,245.38,4.07531176]
[1758254047751,0.16,245.39,245.35,28.14525237]
[1758254048628,0.16,245.39,245.38,26.28432314]
[1758254049857,0.16,245.39,245.38,30.07531176]
[1758254052241,0.16,245.39,245.38,63.01531176]
[1758254052828,0.16,245.39,245.38,63.2996349]
[1758254053054,0.06,245.44,245.38,73.20359116]
[1758254053646,0.06,245.44,245.38,40.26359116]
[1758254053967,0.06,245.44,245.39,32.94]
[1758254054466,0.68,245.43,245.38,30.07531176]
[1758254054630,2.9866156,245.42,245.38,4.07531176]
[1758254054828,0.68,245.41,245.38,4.07531176]
[1758254055032,0.68,245.4,245.36,14.26475382]
[1758254055260,0.68,245.39,245.36,14.26475382]
[1758254055466,0.68,245.38,245.36,14.26475382]
[1758254055640,0.68,245.37,245.36,4.07564395]
[1758254057359,0.68,245.37,245.35,2.30729529]
[1758254057653,0.68,245.36,245.35,2.30729529]
[1758254058542,0.68,245.36,245.35,6.38310535]
[1758254060342,0.68,245.38,245.35,6.38310535]
[1758254060756,2.30729529,245.42,245.35,6.38310535]
[1758254061063,0.68,245.37,245.35,6.38310535]
[1758254061265,0.68,245.4,245.36,2.30729529]
[1758254061469,0.68,245.4,245.39,2.30729529]
[1758254062154,0.06,245.44,245.39,2.30729529]
[1758254062336,0.68,245.43,245.4,2.30729529]
[1758254062540,0.68,245.42,245.4,2.30729529]
[1758254062763,0.06,245.44,245.41,2.30729529]
[1758254063066,0.68,245.42,245.41,6.38210886]
[1758254063266,0.68,245.42,245.41,4.07481357]
[1758254063475,0.68,245.42,245.41,6.38210886]
[1758254064142,0.68,245.42,245.41,4.07481357]
[1758254064353,0.68,245.42,245.41,2.30729529]
[1758254064844,0.68,245.42,245.39,14.26295669]
[1758254065164,0.06,245.44,245.41,2.30729529]
[1758254065566,0.71,245.43,245.42,4.07464754]
[1758254066247,0.06,245.44,245.42,6.38194283]
[1758254066450,0.06,245.44,245.43,2.30729529]
[1758254067469,0.06,245.44,245.43,6.38177681]
[1758254067764,0.77,245.44,245.43,6.38177681]
[1758254072556,0.77,245.44,245.43,4.07448152]
[1758254072874,0.06,245.44,245.43,6.38177681]
[1758254073074,0.77,245.44,245.43,6.38177681]
[1758254073284,0.77,245.44,245.4,14.26242868]
[1758254073469,0.77,245.44,245.43,2.30729529]
[1758254075490,0.06,245.44,245.43,6.38177681]
[1758254075671,0.77,245.44,245.43,6.38177681]
[1758254075988,0.06,245.44,245.43,6.38177681]
[1758254076560,0.77,245.44,245.32,0.03]
[1758254076776,2.30729529,245.43,245.35,4.10579624]
[1758254077096,0.71,245.42,245.36,2.30729529]
[1758254077265,2.30729529,245.43,245.36,2.30729529]
[1758254077463,0.71,245.41,245.36,2.30729529]
[1758254077760,0.71,245.4,245.37,4.07547784]
[1758254077974,0.71,245.39,245.37,4.07547784]
[1758254078172,0.71,245.38,245.37,4.07547784]
[1758254079960,0.71,245.38,245.35,0.03]
[1758254079961,2.18646257,245.38,245.35,0.03]
[1758254080267,2.18646257,245.38,245.32,0.03]
[1758254080268,1.47646257,245.36,245.32,0.03]
[1758254080988,0.71,245.35,245.32,0.03]
[1758254082881,0.71,245.34,245.32,1.50646257]
[1758254083193,0.71,245.33,245.32,1.50646257]
[1758254083595,0.71,245.33,245.32,0.03]
[1758254084998,0.71,245.33,245.32,4.10630849]
[1758254085295,0.71,245.33,245.32,5.58277106]
[1758254085478,0.71,245.35,245.32,5.58277106]
[1758254085679,0.71,245.34,245.32,5.58277106]
[1758254086188,0.71,245.33,245.32,1.50646257]
[1758254086399,0.71,245.35,245.32,0.03]
[1758254086589,0.71,245.35,245.32,1.50646257]
[1758254086900,0.71,245.34,245.32,1.50646257]
[1758254087405,1.41780658,245.39,245.33,5.5526049]
[1758254087599,0.70780658,245.39,245.36,1.47646257]
[1758254087904,0.71,245.38,245.36,1.47646257]
[1758254088088,0.71,245.37,245.36,1.47646257]
[1758254088689,0.70780658,245.39,245.33,10.19035584]
[1758254088892,0.70780658,245.39,245.36,1.47646257]
[1758254089087,1.41780658,245.39,245.35,1.47646257]
[1758254089290,1.41780658,245.39,245.36,1.47646257]
[1758254089900,1.41780658,245.39,245.37,1.47646257]
[1758254090203,0.70780658,245.39,245.37,1.47646257]
[1758254090408,0.71,245.38,245.37,1.47646257]
[1758254090812,0.70780658,245.39,245.37,1.47646257]
[1758254091308,0.70780658,245.39,245.38,1.47646257]
[1758254092090,0.70780658,245.39,245.38,5.55177433]
[1758254093794,0.70780658,245.39,245.38,5.58177433]
[1758254094806,1.37780658,245.39,245.32,26.03]
[1758254094989,1.37780658,245.39,245.36,1.47646257]
[1758254095309,1.37780658,245.39,245.37,1.47646257]
[1758254096107,0.70780658,245.39,245.38,5.55177433]
[1758254100412,0.70780658,245.39,245.38,1.47646257]
[1758254102112,0.06,245.44,245.38,1.47646257]
[1758254102309,0.06,245.44,245.43,1.47646257]
[1758254102507,0.73,245.44,245.43,1.47646257]
[1758254103102,0.06,245.44,245.43,1.47646257]
[1758254103304,0.73,245.44,245.43,1.47646257]
[1758254103705,0.06,245.44,245.43,1.47646257]
[1758254104007,0.06,245.44,245.39,14.26300989]
[1758254104218,0.73,245.44,245.43,1.47646257]
[1758254104403,0.73,245.44,245.43,5.55094409]
[1758254105191,0.73,245.44,245.41,1.47646257]
[1758254105397,0.67,245.43,245.41,1.47646257]
[1758254105591,0.67,245.43,245.42,1.47646257]
[1758254106023,0.67,245.43,245.35,10.18917293]
[1758254106202,0.67,245.42,245.38,1.47646257]
[1758254106511,0.67,245.41,245.38,1.47646257]
[1758254106717,0.67,245.4,245.39,1.47646257]
[1758254108404,0.67,245.4,245.39,5.55160825]
[1758254108604,0.67,245.4,245.39,4.07514568]
[1758254110225,0.67,245.4,245.35,0.03]
[1758254110516,0.67,245.4,245.36,1.47646257]
[1758254110723,1.47646257,245.42,245.36,1.47646257]
[1758254110904,0.67,245.39,245.36,1.47646257]
[1758254111104,1.47646257,245.42,245.36,1.47646257]
[1758254111105,0.67,245.38,245.36,1.47646257]
[1758254111301,0.67,245.37,245.35,4.10578199]
[1758254111521,0.67,245.37,245.36,1.47646257]
[1758254112923,0.67,245.39,245.36,5.55210652]
[1758254113112,0.67,245.38,245.36,5.55210652]
[1758254113514,0.67,245.38,245.37,1.47646257]
[1758254113705,0.67,245.41,245.37,1.47646257]
[1758254113898,0.67,245.4,245.39,1.47646257]
[1758254114425,2.19200008,245.44,245.39,1.47646257]
[1758254114605,0.67,245.42,245.4,1.47646257]
[1758254114799,0.67,245.42,245.36,10.18910987]
[1758254115122,2.19200008,245.44,245.35,4.10581006]
[1758254115123,0.67,245.41,245.35,4.10581006]
[1758254115318,0.67,245.4,245.37,1.47646257]
[1758254115510,0.67,245.39,245.38,1.47646257]
[1758254115698,0.67,245.39,245.35,4.10581006]
[1758254115894,0.67,245.38,245.37,1.47646257]
[1758254117423,0.67,245.38,245.37,5.55194041]
[1758254117631,0.67,245.38,245.37,1.47646257]
[1758254118421,0.67,245.38,245.37,5.55194041]
[1758254123506,0.67,245.38,245.35,0.03]
[1758254123711,0.73,245.38,245.35,0.03]
[1758254127707,0.73,245.38,245.35,1.50646257]
[1758254127907,0.73,245.38,245.36,1.47646257]
[1758254127908,0.06,245.38,245.36,1.47646257]
[1758254128114,0.75,245.38,245.36,1.47646257]
[1758254128436,0.06,245.38,245.36,1.47646257]
[1758254128727,0.69,245.37,245.36,1.47646257]
[1758254129220,0.69,245.37,245.36,5.55210652]
[1758254130335,0.69,245.37,245.36,4.07564395]
[1758254130525,0.69,245.37,245.36,5.55210652]
[1758254132414,0.69,245.37,245.36,1.47646257]
[1758254132735,0.69,245.37,245.35,5.58221113]
[1758254132912,0.69,245.36,245.35,5.58221113]
[1758254133311,0.69,245.36,245.35,4.10574856]
[1758254133530,0.69,245.36,245.35,5.58221113]
[1758254134033,0.69,245.36,245.35,1.50646257]
[1758254135139,0.69,245.36,245.35,5.58227263]
[1758254136644,0.75,245.38,245.35,5.58227263]
[1758254136818,0.69,245.37,245.35,5.58227263]
[1758254137544,0.69,245.36,245.35,5.58227263]
[1758254138740,0.06,245.38,245.35,5.58227263]
[1758254138952,0.69,245.37,245.35,5.58227263]
[1758254139128,0.69,245.37,245.36,1.47646257]
[1758254139727,0.69,245.37,245.36,2.30682312]
[1758254140345,0.69,245.37,245.35,0.03]
[1758254140555,0.69,245.36,245.35,0.03]
[1758254140848,0.69,245.36,245.35,2.33682312]
[1758254142949,0.69,245.36,245.35,0.03]
[1758254143722,4.76564395,245.36,245.35,0.03]
[1758254143942,7.07246707,245.36,245.35,0.03]
[1758254145734,11.32086704,245.36,245.35,0.03]
[1758254146530,9.01404392,245.36,245.35,0.03]
[1758254146724,4.93839997,245.36,245.35,0.03]
[1758254156664,9.01404392,245.36,245.35,0.03]
[1758254158575,25.05862262,245.36,245.35,0.03]
[1758254158773,27.36544574,245.36,245.35,0.03]
[1758254159072,25.05862262,245.36,245.35,0.03]
[1758254159655,57.59862262,245.36,245.35,0.03]
[1758254159854,57.65862262,245.36,245.35,0.03]
[1758254160484,55.3517995,245.36,245.35,0.03]
[1758254160981,57.65862262,245.36,245.35,0.03]
[1758254162584,55.3517995,245.36,245.35,0.03]
[1758254162750,57.65862262,245.36,245.35,0.03]
[1758254165984,88.15719972,245.36,245.35,0.03]
[1758254167678,85.8503766,245.36,245.35,0.03]
[1758254167885,88.15719972,245.36,245.35,0.03]
[1758254168856,85.8503766,245.36,245.35,0.03]
[1758254169057,88.15719972,245.36,245.35,0.03]
[1758254169262,74.54160571,245.36,245.35,0.03]
[1758254169667,74.52160571,245.36,245.35,0.03]
[1758254169859,88.11719972,245.36,245.35,0.03]
[1758254170204,88.11719972,245.36,245.28,0.03]
[1758254170205,88.11719972,245.36,245.25,0.03]
[1758254170206,0.14216157,245.31,245.25,0.03]
[1758254170356,26.0,245.21,245.11,0.1]
[1758254170561,0.14216157,245.16,245.11,0.1]
[1758254170893,0.85216157,245.21,245.11,0.1]
[1758254170894,32.5,245.15,245.12,2.30682312]
[1758254171194,32.5,245.16,245.13,2.30682312]
[1758254171490,46.20757342,245.17,245.14,2.30682312]
[1758254171685,46.20757342,245.17,245.15,2.30682312]
[1758254172191,46.20757342,245.17,245.12,0.21]
[1758254172362,46.20757342,245.17,245.15,2.30682312]
[1758254173086,46.20757342,245.17,245.14,4.07928516]
[1758254173384,46.20757342,245.17,245.15,2.30682312]
[1758254174472,46.20757342,245.17,245.16,2.30682312]
[1758254176393,46.20757342,245.17,245.16,4.82364624]
[1758254176984,46.20757342,245.17,245.16,4.61364624]
[1758254178687,46.20757342,245.17,245.15,0.03]
[1758254178985,46.91757342,245.17,245.15,2.33682312]
[1758254179181,33.21,245.16,245.15,0.03]
[1758254179686,39.80640565,245.16,245.15,0.03]
[1758254180189,39.80640565,245.16,245.15,2.33682312]
[1758254180571,39.80640565,245.16,245.15,0.03]
[1758254180766,39.80640565,245.16,245.15,2.33682312]
[1758254182474,39.80640565,245.16,245.15,0.03]
[1758254183373,39.80640565,245.16,245.15,2.33682312]
[1758254183565,39.80640565,245.16,245.15,0.03]
[1758254183767,39.80640565,245.16,245.15,2.33682312]
[1758254184196,39.80640565,245.16,245.15,0.03]
[1758254184492,39.80640565,245.16,245.15,2.33682312]
[1758254185091,7.30640565,245.16,245.15,2.33682312]
[1758254185272,39.78640565,245.16,245.15,2.33682312]
[1758254185474,6.59640565,245.16,245.15,2.33682312]
[1758254185787,39.07640565,245.16,245.15,2.33682312]
[1758254187596,39.77640565,245.16,245.15,0.03]
[1758254188488,39.91856722,245.16,245.15,0.03]
[1758254188686,42.22539034,245.16,245.15,0.03]
[1758254189278,39.91856722,245.16,245.15,0.03]
[1758254189796,55.82098435,245.16,245.15,0.03]
[1758254190997,23.34098435,245.16,245.15,0.03]
[1758254191192,55.80098435,245.16,245.15,0.03]
[1758254192500,67.80049487,245.16,245.15,0.03]
[1758254193004,35.34049487,245.16,245.15,0.03]
[1758254193207,65.49367175,245.16,245.15,0.03]
[1758254193382,67.80049487,245.16,245.15,0.03]
[1758254194401,71.8794637,245.16,245.15,0.03]
[1758254194899,69.57264058,245.16,245.15,0.03]
[1758254195097,71.8794637,245.16,245.15,0.03]
[1758254196720,39.4194637,245.16,245.15,0.03]
[1758254196904,71.8794637,245.16,245.15,0.03]
[1758254197708,39.4194637,245.16,245.15,0.03]
[1758254197893,71.8794637,245.16,245.15,0.03]
[1758254199300,74.47060996,245.16,245.15,0.03]
[1758254199598,73.79787389,245.16,245.15,0.03]
[1758254199801,72.97108167,245.16,245.15,0.03]
[1758254200189,40.51108167,245.16,245.15,0.03]
[1758254200795,72.95108167,245.16,245.15,0.03]
[1758254201295,39.87991715,245.13,245.12,0.03]
[1758254201496,80.77123158,245.13,245.12,0.03]
[1758254201698,83.02877742,245.13,245.12,0.03]
[1758254202506,50.58877742,245.13,245.12,0.03]
[1758254202882,83.02877742,245.13,245.12,0.03]
[1758254203189,56.30246603,245.13,245.12,0.03]
[1758254203499,88.8846276,245.13,245.12,0.03]
[1758254203897,14.02207872,245.08,245.07,1e-08]
[1758254204094,14.02207872,245.08,244.89,5.9201236]
[1758254204095,20.0,244.91,244.89,5.9201236]
[1758254204285,20.0,244.91,244.9,1.4800309]
[1758254204802,20.0,244.93,244.9,1.4800309]
[1758254205002,32.44,244.92,244.91,1.4800309]
[1758254205205,20.0,244.93,244.92,4.08296586]
[1758254205387,20.0,244.95,244.92,5.56299676]
[1758254205587,20.0,244.95,244.94,1.4800309]
[1758254205905,52.44,244.95,244.94,1.4800309]
[1758254206291,20.0,244.95,244.92,4.08296586]
[1758254206492,20.0,244.94,244.92,1.4800309]
[1758254206695,20.0,244.92,244.89,2.13164967]
[1758254206897,32.44,244.91,244.89,3.61168057]
[1758254207109,20.0,244.92,244.9,1.4800309]
[1758254207312,20.0,244.92,244.91,1.4800309]
[1758254207493,52.44,244.92,244.91,1.4800309]
[1758254207894,61.31482408,244.92,244.91,1.4800309]
[1758254208113,20.0,244.9,244.89,2.13164967]
[1758254208411,61.00166695,244.9,244.89,3.61168057]
[1758254208612,28.56166695,244.9,244.89,2.13164967]
[1758254208816,61.00166695,244.9,244.89,3.61168057]
[1758254209019,28.56166695,244.9,244.89,3.61168057]
[1758254209195,61.00166695,244.9,244.89,2.13164967]
[1758254209394,61.00166695,244.9,244.89,3.61168057]
[1758254209712,8.56166695,244.9,244.89,9.53180417]
[1758254210015,8.56166695,244.9,244.89,2.13164967]
[1758254210198,8.56166695,244.9,244.89,3.61168057]
[1758254210399,8.56166695,244.9,244.89,2.13164967]
[1758254210910,8.56166695,244.9,244.89,5.09171147]
[1758254211208,8.56166695,244.9,244.89,3.61168057]
[1758254211417,8.56166695,244.9,244.89,2.13164967]
[1758254211596,8.56166695,244.9,244.89,3.61168057]
[1758254211991,8.56166695,244.9,244.89,9.53180417]
[1758254212913,8.56166695,244.9,244.89,2.13164967]
[1758254213209,8.56166695,244.9,244.89,5.09171147]
[1758254214321,8.56166695,244.9,244.89,9.53180417]
[1758254215009,8.56166695,244.9,244.89,2.13164967]
[1758254215313,8.56166695,244.9,244.89,9.53180417]
[1758254216810,8.56166695,244.9,244.89,2.13164967]
[1758254217118,8.56166695,244.9,244.89,3.61168057]
[1758254217297,8.56166695,244.9,244.89,5.09171147]
[1758254218494,8.56166695,244.9,244.89,2.13164967]
[1758254218694,8.56166695,244.9,244.89,5.09171147]
[1758254219797,8.56166695,244.9,244.89,9.53180417]
[1758254220096,8.56166695,244.9,244.89,3.61168057]
[1758254220511,28.56166695,244.9,244.89,3.61168057]
[1758254221208,29.27166695,244.9,244.89,2.13164967]
[1758254221534,29.27166695,244.9,244.88,0.03]
[1758254222030,2.46570313,244.89,244.88,1.5100309]
[1758254222722,2.46570313,244.89,244.88,0.03]
[1758254223021,2.46570313,244.89,244.88,1.5100309]
[1758254223727,2.46570313,244.89,244.88,0.03]
[1758254223913,2.46570313,244.89,244.88,1.5100309]
[1758254224096,2.46570313,244.89,244.88,0.03]
[1758254224415,2.46570313,244.89,244.88,1.5100309]
[1758254226407,2.46570313,244.89,244.88,0.03]
[1758254226607,2.46570313,244.89,244.88,1.5100309]
[1758254228325,2.46570313,244.89,244.88,5.59366369]
[1758254229303,2.46570313,244.89,244.88,7.07369459]
[1758254229813,2.46570313,244.89,244.88,4.11363279]
[1758254230121,2.46570313,244.89,244.88,5.59366369]
[1758254230425,23.17570313,244.89,244.88,0.03]
[1758254230621,23.17570313,244.89,244.88,1.5100309]
[1758254231824,22.46570313,244.89,244.88,5.59366369]
[1758254232204,2.46570313,244.89,244.88,7.07369459]
[1758254233411,2.46570313,244.89,244.88,0.03]
[1758254233608,2.46570313,244.89,244.88,2.9900618]
[1758254234021,2.46570313,244.89,244.88,0.03]
[1758254234214,2.46570313,244.89,244.88,1.5100309]
[1758254235728,2.46570313,244.89,244.88,5.59366369]
[1758254237018,2.46570313,244.89,244.88,0.03]
[1758254237236,2.46570313,244.89,244.88,1.5100309]
[1758254237430,2.46570313,244.89,244.88,0.03]
[1758254237629,2.46570313,244.89,244.88,1.5100309]
[1758254237818,3.17570313,244.89,244.88,1.5100309]
[1758254238216,3.17570313,244.89,244.88,0.03]
[1758254238417,3.17570313,244.89,244.88,1.5100309]
[1758254241141,3.17570313,244.89,244.88,5.59366369]
[1758254242327,2.46570313,244.89,244.88,5.59366369]
[1758254243121,3.17570313,244.89,244.88,0.03]
[1758254243321,3.17570313,244.89,244.88,1.5100309]
[1758254244923,3.17570313,244.89,244.88,5.59366369]
[1758254245438,3.17570313,244.89,244.88,1.5100309]
[1758254246618,3.17570313,244.89,244.88,5.59366369]
[1758254247037,2.46570313,244.89,244.88,5.59366369]
[1758254247235,2.46570313,244.89,244.88,11.95378729]
[1758254247624,0.06,244.92,244.88,4.11363279]
[1758254247936,20.0,244.9,244.88,4.11363279]
[1758254248138,20.0,244.9,244.88,4.55363279]
[1758254248437,0.06,244.92,244.88,14.32271478]
[1758254248438,20.06,244.92,244.88,14.32271478]
[1758254249031,20.06,244.92,244.91,5.56316347]
[1758254252733,0.06,244.92,244.91,6.00316347]
[1758254253039,0.06,244.95,244.94,26.0]
[1758254253247,0.06,244.95,244.94,29.4000618]
[1758254253738,0.1,244.99,244.94,33.8401545]
[1758254253931,0.1,244.99,244.96,7.4001545]
[1758254254836,0.1,244.99,244.96,7.8401545]
[1758254255324,0.1,244.99,244.96,11.92245365]
[1758254255525,0.79,244.99,244.96,4.08229915]
[1758254255742,0.79,244.99,244.96,5.56233005]
[1758254256846,0.1,244.99,244.96,5.56233005]
[1758254258849,0.75,244.97,244.96,1.4800309]
[1758254259460,0.06,244.97,244.96,1.4800309]
[1758254259832,0.06,244.97,244.96,2.3136779]
[1758254260646,0.06,244.97,244.96,4.6273558]
[1758254261024,0.06,244.97,244.96,8.70965495]
[1758254261450,0.06,244.97,244.96,6.39597705]
[1758254261950,0.06,244.97,244.96,8.70965495]
[1758254264743,0.06,244.97,244.96,9.14965495]
[1758254265439,0.1,244.99,244.98,13.59559401]
[1758254265638,0.1,244.99,244.98,50.62294981]
[1758254265836,0.1,244.99,244.98,51.06294981]
[1758254267235,20.79,244.99,244.92,13.59559401]
[1758254267434,24.5,244.99,244.98,2.3136779]
[1758254267653,24.5,244.99,244.97,26.0]
[1758254267863,24.5,244.99,244.98,2.3136779]
[1758254268482,25.19,244.99,244.94,10.2065812]
[1758254268653,24.5,244.99,244.98,2.3136779]
[1758254269338,25.19,244.99,244.98,2.3136779]
[1758254270168,25.19,244.99,244.98,1.3275579]
[1758254270941,25.19,244.99,244.98,5.40952377]
[1758254273767,24.5,244.99,244.98,5.40952377]
[1758254273980,25.19,244.99,244.98,5.40952377]
[1758254274677,24.5,244.99,244.98,7.72320167]
[1758254274861,25.15,244.99,244.98,7.72320167]
[1758254275262,4.5,244.99,244.98,33.72320167]
[1758254276342,4.5,244.99,244.98,7.72320167]
[1758254276560,4.5,244.99,244.98,8.16320167]
[1758254277571,0.1,244.99,244.98,26.0]
[1758254277875,0.1,244.99,244.98,30.6273558]
[1758254278257,0.1,244.99,244.98,31.0673558]
[1758254278661,0.1,244.99,244.98,67.08932167]
[1758254279174,0.1,244.99,244.98,67.52932167]
[1758254279575,0.06,245.0,244.98,67.52932167]
[1758254279872,0.06,245.0,244.99,2.7536779]
[1758254280271,0.06,245.0,244.99,2.3136779]
[1758254280773,0.06,245.02,245.01,26.0]
[1758254280962,0.06,245.02,245.01,60.6936779]
[1758254281972,0.06,245.02,245.01,64.77514396]
[1758254282175,20.0,244.96,244.94,4.08256815]
[1758254282370,20.0,244.94,244.93,4.11279916]
[1758254282557,20.66,244.94,244.93,4.11279916]
[1758254282759,25.06,244.94,244.93,4.11279916]
[1758254282968,20.66,244.94,244.93,4.11279916]
[1758254283474,20.66,244.94,244.93,6.42647706]
[1758254285164,0.26499998,244.99,244.93,16.63347497]
[1758254285165,20.66,244.96,244.93,16.63347497]
[1758254285478,20.0,244.96,244.95,2.3136779]
[1758254285662,20.0,244.96,244.93,46.67979707]
[1758254285854,20.0,244.96,244.95,6.3961437]
[1758254286257,20.66,244.96,244.95,6.3961437]
[1758254286452,0.66,244.96,244.95,38.7561437]
[1758254286679,20.66,244.96,244.95,38.7561437]
[1758254286881,20.0,244.94,244.93,0.03]
[1758254287058,20.0,244.94,244.93,2.3436779]
[1758254287261,20.66,244.94,244.93,2.3436779]
[1758254287785,20.66,244.94,244.93,6.42647706]
[1758254287987,25.06,244.94,244.93,6.42647706]
[1758254288692,24.4,244.94,244.93,6.42647706]
[1758254289062,25.06,244.94,244.93,6.42647706]
[1758254290470,25.06,244.94,244.93,4.11279916]
[1758254290678,25.06,244.94,244.93,6.42647706]
[1758254291786,4.4,244.94,244.93,6.42647706]
[1758254291986,24.4,244.94,244.93,6.42647706]
[1758254293289,4.4,244.94,244.93,20.02207107]
[1758254294162,4.4,244.94,244.93,17.70839317]
[1758254294369,4.4,244.94,244.93,20.02207107]
[1758254296886,4.4,244.94,244.93,32.42647706]
[1758254297388,4.4,244.94,244.93,64.78647706]
[1758254297789,4.4,244.94,244.93,32.42647706]
[1758254298502,4.4,244.94,244.93,64.78647706]
[1758254298797,5.06,244.94,244.93,32.42647706]
[1758254298972,4.4,244.94,244.93,32.42647706]
[1758254299684,4.4,244.94,244.93,64.78647706]
[1758254300068,4.4,244.94,244.93,32.42647706]
[1758254300269,4.4,244.94,244.93,64.78647706]
[1758254301197,4.4,244.94,244.93,52.82207107]
[1758254301372,0.32499998,244.99,244.98,2.3136779]
[1758254301574,0.32499998,244.99,244.98,34.6736779]
[1758254301769,0.32499998,244.99,244.98,36.9873558]
[1758254302494,0.32499998,244.99,244.98,41.06932167]
[1758254302869,1e-08,244.99,244.98,22.30491568]
[1758254303070,1e-08,244.99,244.98,54.66491568]
[1758254305170,1e-08,244.99,244.98,55.10491568]
[1758254306980,1e-08,244.99,244.98,54.66491568]
[1758254307786,1e-08,245.0,244.99,17.67739326]
[1758254308094,1e-08,245.0,244.99,20.43107116]
[1758254308880,1e-08,245.0,244.99,19.99107116]
[1758254309085,1e-08,245.0,244.99,20.43107116]
[1758254309505,1e-08,245.0,244.99,19.99107116]
[1758254309683,1e-08,245.0,244.99,20.43107116]
[1758254310189,1e-08,245.0,244.99,19.99107116]
[1758254314583,0.06,245.02,244.99,19.99107116]
[1758254314584,0.06,245.02,245.01,39.59559401]
[1758254314888,0.06,245.02,245.01,74.24927191]
[1758254315702,0.06,245.04,245.02,13.59559401]
[1758254316002,1e-08,245.04,245.03,50.56294981]
[1758254316601,1e-08,245.05,245.04,13.59559401]
[1758254316904,1e-08,245.05,245.04,18.22294981]
[1758254317688,1e-08,245.05,245.04,22.30391618]
[1758254317897,1e-08,245.05,245.04,22.58823932]
[1758254319503,1e-08,245.05,245.04,54.90823932]
[1758254319929,1e-08,245.05,245.04,57.67736677]
[1758254320712,1e-08,245.05,245.04,59.31098666]
[1758254323304,1e-08,245.05,245.04,26.99098666]
[1758254323502,1e-08,245.05,245.04,59.31098666]
[1758254324220,0.72000001,245.05,245.04,5.71458626]